fUST/lending_fUST_20240522
["ID","MTS","AMOUNT","RATE_DAILY","PERIOD"]
[327711953,1716351046946,-202.45497137,0.00025524,2]
[327711954,1716351046956,-1129.38202102,0.00025524,2]
[327711955,1716351046966,-1129.38202102,0.00025524,2]
[327711956,1716351046975,-1129.38202102,0.00025524,2]
[327711957,1716351046985,-151.0,0.00025525,2]
[327711958,1716351046994,-151.0,0.00025525,2]
[327711959,1716351047004,-332.92715787,0.00025525,7]
[327712089,1716352233544,-488.42751085,0.00020547,2]
[327712101,1716352238455,-20631.88804128,0.00020547,2]
[327712104,1716352238552,-2918.36283568,0.00020547,2]
[327712105,1716352238561,-150.616,0.00023,2]
[327712106,1716352238571,-217.877874,0.00024384,2]
[327712107,1716352238580,-411.5,0.00024511,3]
[327712108,1716352238589,-151.0,0.00024511,3]
[327712109,1716352238599,-362.20721548,0.00025099,2]
[327712110,1716352238608,-592.0,0.000251,2]
[327712111,1716352238617,-280.30608763,0.00025269,2]
[327712112,1716352238626,-411.5,0.00025321,5]
[327712113,1716352238635,-151.0,0.00025321,5]
[327712114,1716352238645,-4282.88932285,0.00025525,10]
[327712115,1716352238654,-160.61898837,0.00026032,2]
[327712116,1716352238663,-411.5,0.00026132,5]
[327712117,1716352238672,-151.0,0.00026132,5]
[327712118,1716352238681,-411.5,0.00026942,5]
[327712119,1716352238690,-151.0,0.00026942,5]
[327712120,1716352238699,-227.3507291,0.0002739,2]
[327712127,1716352242862,-913.73271442,0.0002739,2]
[327712128,1716352242871,-411.5,0.00027752,5]
[327712129,1716352242880,-151.0,0.00027752,5]
[327712130,1716352242889,-150.859,0.00028513,2]
[327712131,1716352242898,-411.5,0.00028562,7]
[327712133,1716352242910,-151.0,0.00028562,7]
[327712135,1716352242920,-160.61898837,0.00029015,2]
[327712137,1716352242930,-411.5,0.00029373,7]
[327712138,1716352242938,-151.0,0.00029373,7]
[327712139,1716352242948,-177.22228032,0.00029893,2]
[327712140,1716352242959,-177.2222803,0.00029895,2]
[327712141,1716352242968,-177.2222803,0.00029898,2]
[327712142,1716352242977,-511.52971959,0.000299,2]
[327712143,1716352242986,-177.2222803,0.000299,2]
[327712144,1716352242997,-1000.0,0.00029988,5]
[327712145,1716352243006,-599.53414537,0.0002999,2]
[327712146,1716352243015,-31.53867467,0.0002999,2]
[327712207,1716352690096,684.90731694,9.999e-05,2]
[327712214,1716352822080,174.67407508,9.999e-05,2]
[327712280,1716353433600,-2467.15169101,0.00020912,2]
[327712281,1716353433610,-7934.82224695,0.00020913,2]
[327712282,1716353433620,-206.98398,0.00024384,2]
[327712283,1716353433631,-171.5,0.00024976,5]
[327712284,1716353433641,-151.0,0.00024976,5]
[327712285,1716353433651,-362.20721548,0.00025,2]
[327712286,1716353433661,-171.5,0.00025744,5]
[327712287,1716353433670,-151.0,0.00025744,5]
[327712288,1716353433680,-171.5,0.00026512,5]
[327712289,1716353433690,-593.51966769,0.000267,120]
[327712290,1716353433700,-171.5,0.0002728,5]
[327712291,1716353433710,-2302.90089604,0.0002739,14]
[327712292,1716353433720,-171.5,0.00028048,7]
[327712293,1716353433730,-500.092,0.00028312,2]
[327712294,1716353433740,-150.0,0.00028312,2]
[327712295,1716353433749,-171.5,0.00028816,7]
[327712296,1716353433759,-150.50820687,0.00029,2]
[327712297,1716353433772,-171.5,0.00029584,7]
[327712298,1716353433781,-224.24487011,0.0002969,3]
[327712299,1716353433790,-160.61898837,0.00029898,2]
[327712300,1716353433800,-4282.88932285,0.0002999,10]
[327712301,1716353433809,-160.63449517,0.00029998,10]
[327712302,1716353433819,-151.0,0.00029998,2]
[327712303,1716353433828,-151.0,0.00029998,2]
[327712304,1716353433837,-151.0,0.00029998,2]
[327712305,1716353433846,-151.0,0.00029998,2]
[327712306,1716353433855,-151.0,0.00029998,2]
[327712307,1716353433865,-222.85369,0.00029998,2]
[327712308,1716353433875,-151.155779,0.00029998,2]
[327712309,1716353433883,-284.036002,0.00029998,2]
[327712310,1716353433892,-151.0,0.00029998,2]
[327712311,1716353433902,-191.85799,0.00029998,2]
[327712312,1716353433911,-1067.42616235,0.00029998,5]
[327712313,1716353433921,-20980.29344792,0.00029998,7]
[327712314,1716353433930,-287.67256976,0.00029999,2]
[327712315,1716353433939,-511.08542131,0.00029999,2]
[327712316,1716353433948,-106.06868995,0.00029999,2]
[327712326,1716353438792,-405.01673136,0.00029999,2]
[327712327,1716353438802,-511.08542131,0.00029999,2]
[327712328,1716353438812,-152.96638578,0.00029999,2]
[327712350,1716353442960,-323.38,0.0002999,3]
[327712351,1716353442971,-358.11903553,0.00029999,2]
[327712352,1716353442980,-511.08542131,0.00029999,2]
[327712353,1716353442989,-511.08542131,0.00029999,2]
[327712354,1716353442998,-511.08542131,0.00029999,2]
[327712355,1716353443007,-511.08542131,0.00029999,2]
[327712356,1716353443017,-511.08542131,0.00029999,2]
[327712357,1716353443029,-511.08542131,0.00029999,2]
[327712358,1716353443038,-511.08542131,0.00029999,2]
[327712359,1716353443048,-511.08542131,0.00029999,2]
[327712360,1716353443057,-511.08542131,0.00029999,2]
[327712361,1716353443067,-511.08542131,0.00029999,2]
[327712362,1716353443077,-511.08542131,0.00029999,2]
[327712363,1716353443085,-511.08542131,0.00029999,2]
[327712364,1716353443095,-511.08542131,0.00029999,2]
[327712365,1716353443104,-511.08542131,0.00029999,2]
[327712366,1716353443115,-511.08542131,0.00029999,2]
[327712367,1716353443125,-511.08542131,0.00029999,2]
[327712368,1716353443135,-511.08542131,0.00029999,2]
[327712369,1716353443145,-511.08542131,0.00029999,2]
[327712370,1716353443155,-511.08542131,0.00029999,2]
[327712371,1716353443165,-511.08542131,0.00029999,2]
[327712372,1716353443175,-511.08542131,0.00029999,2]
[327712373,1716353443184,-511.08542131,0.00029999,2]
[327712374,1716353443193,-511.08542131,0.00029999,2]
[327712376,1716353443203,-511.08542131,0.00029999,2]
[327712378,1716353443216,-511.08542131,0.00029999,2]
[327712380,1716353443225,-511.08542131,0.00029999,2]
[327712381,1716353443234,-511.08542131,0.00029999,2]
[327712382,1716353443243,-511.08542131,0.00029999,2]
[327712383,1716353443253,-511.08542131,0.00029999,2]
[327712384,1716353443263,-511.08542131,0.00029999,2]
[327712385,1716353443275,-511.08542131,0.00029999,2]
[327712386,1716353443286,-511.08542131,0.00029999,2]
[327712387,1716353443298,-511.08542131,0.00029999,2]
[327712388,1716353443308,-511.08542131,0.00029999,2]
[327712390,1716353443318,-511.08542131,0.00029999,2]
[327712391,1716353443327,-511.08542131,0.00029999,2]
[327712393,1716353443342,-511.08542131,0.00029999,2]
[327712395,1716353443352,-511.08542131,0.00029999,2]
[327712396,1716353443361,-788.48422136,0.00029999,2]
[327712397,1716353443371,-788.48422136,0.00029999,2]
[327712398,1716353443380,-788.48422136,0.00029999,2]
[327712399,1716353443390,-788.48422136,0.00029999,2]
[327712400,1716353443399,-788.48422136,0.00029999,2]
[327712401,1716353443408,-788.48422136,0.00029999,2]
[327712402,1716353443417,-788.48422136,0.00029999,2]
[327712403,1716353443426,-788.48422136,0.00029999,2]
[327712404,1716353443436,-788.48422136,0.00029999,2]
[327712405,1716353443446,-788.48422136,0.00029999,2]
[327712406,1716353443455,-788.48422136,0.00029999,2]
[327712407,1716353443464,-788.48422136,0.00029999,2]
[327712409,1716353443473,-788.48422136,0.00029999,2]
[327712410,1716353443483,-788.48422136,0.00029999,2]
[327712411,1716353443492,-788.48422136,0.00029999,2]
[327712412,1716353443501,-788.48422136,0.00029999,2]
[327712413,1716353443510,-788.48422136,0.00029999,2]
[327712414,1716353443520,-788.48422136,0.00029999,2]
[327712415,1716353443538,-788.48422136,0.00029999,2]
[327712417,1716353443548,-788.48422136,0.00029999,2]
[327712419,1716353443558,-788.48422136,0.00029999,2]
[327712420,1716353443567,-788.48422136,0.00029999,2]
[327712422,1716353443577,-735.91860659,0.00029999,2]
[327712424,1716353443588,-735.91860659,0.00029999,2]
[327712425,1716353443599,-735.91860659,0.00029999,2]
[327712426,1716353443608,-151.419128,0.00029999,2]
[327712428,1716353443618,-151.0,0.00029999,2]
[327712430,1716353443628,-151.0,0.00029999,2]
[327712431,1716353443637,-151.0,0.00029999,2]
[327712433,1716353443647,-151.0,0.00029999,2]
[327712435,1716353443656,-151.0,0.00029999,2]
[327712436,1716353443666,-204.632642,0.00029999,2]
[327712437,1716353443675,-23611.79969204,0.0003,7]
[327712444,1716353444033,-7252.16637585,0.0003,7]
[327712486,1716353450780,4282.88932285,0.0002,10]
[327712659,1716354492094,10000.0,0.00020022,10]
[327712660,1716354498768,10000.0,0.00018,2]
[327712661,1716354506680,10000.0,0.00018,2]
[327712663,1716354512378,10000.0,0.00018,2]
[327712664,1716354519668,10000.0,0.00018,2]
[327712665,1716354526793,9140.41860798,0.00018,2]
[327712667,1716354533976,10000.0,0.00017,2]
[327712669,1716354544406,10000.0,0.00017,2]
[327712670,1716354553379,4282.88932285,0.00020022,10]
[327712671,1716354554819,10000.0,0.00017,2]
[327712672,1716354567362,4282.88932285,0.0002,10]
[327712673,1716354585398,4282.88932285,0.0002,10]
[327712674,1716354607365,2514.71100723,0.0002,10]
[327712688,1716354632902,-859.58139202,0.00018,2]
[327712689,1716354632912,-196.634781,0.00024384,2]
[327712690,1716354632922,-362.20721548,0.00025204,2]
[327712691,1716354632931,-151.0,0.00025238,5]
[327712692,1716354632942,-151.0,0.00025982,5]
[327712693,1716354632952,-151.0,0.00026726,5]
[327712695,1716354632962,-151.0,0.00027471,5]
[327712697,1716354632971,-104.02356692,0.00028215,7]
[327712699,1716354632982,-46.97643308,0.00028215,7]
[327712701,1716354632992,-496.0,0.00028313,2]
[327712702,1716354633001,-262.12819015,0.00029489,2]
[327712704,1716354633014,-179.39589608,0.00029699,3]
[327712705,1716354633026,-159.12443951,0.000299,2]
[327712706,1716354633034,-7216.30321092,0.0003,30]
[327712707,1716354633046,-305.84891193,0.0003,30]
[327712712,1716354638736,-4135.72182187,0.0003,30]
[327712719,1716354640765,-7541.56263498,0.0003,30]
[327712720,1716354640775,-60094.891,0.0003,2]
[327712722,1716354640784,-151.0,0.0003,2]
[327712723,1716354640794,-1019.49702592,0.0003,4]
[327712724,1716354640803,-196.634781,0.0003031,2]
[327712725,1716354640825,-923.76520077,0.00031751,4]
[327712726,1716354640835,-216.36857656,0.00031847,7]
[327712727,1716354640847,-288.0,0.000325,5]
[327712728,1716354640857,-160.0,0.00032799,3]
[327712729,1716354640868,-8223.14697021,0.000328,2]
[327712744,1716354646306,-598.30034209,0.00030309,4]
[327712907,1716355843752,-176.971302,0.00024384,2]
[327712908,1716355843762,-362.20721548,0.00025204,2]
[327712909,1716355843771,-151.0,0.00025721,5]
[327712910,1716355843781,-151.0,0.00025721,5]
[327712911,1716355843792,-151.0,0.00026421,5]
[327712912,1716355843801,-151.0,0.00027122,5]
[327712913,1716355843810,-151.0,0.00027822,5]
[327712914,1716355843819,-1019.49702592,0.0003,4]
[327712915,1716355843828,-176.971302,0.0003031,2]
[327712916,1716355843837,-179.39589609,0.00032471,3]
[327712917,1716355843848,-154.1868422,0.00032603,2]
[327713019,1716356731924,6321.40984081,0.00026505,120]
[327713086,1716357038190,-1025.31845787,0.00020913,2]
[327713087,1716357038202,-1556.66956567,0.00020913,2]
[327713125,1716357043171,-29407.34082211,0.00020913,2]
[327713202,1716357760693,1116.0,0.00026505,120]
[327713297,1716358238318,-1026.60348016,0.00020813,2]
[327713379,1716358240674,-2.69172814,0.00020813,2]
[327713381,1716358240684,-1876.71975986,0.00020913,2]
[327713399,1716358240864,-3983.9,0.00020913,2]
[327713717,1716358243863,-10351.89816867,0.00020913,2]
[327713718,1716358243873,-1661.4844931,0.00021535,2]
[327713720,1716358243882,-159.274171,0.00024384,2]
[327713721,1716358243892,-151.0,0.0002582,5]
[327713722,1716358243901,-151.0,0.0002582,5]
[327713723,1716358243910,-1272.6136788,0.00026505,7]
[327713724,1716358243919,-1463.03160155,0.00026505,10]
[327713725,1716358243930,-154.98450155,0.00026505,2]
[327713726,1716358243939,-151.0,0.00026511,5]
[327713727,1716358243948,-151.0,0.00027203,5]
[327713728,1716358243957,-783.97235853,0.0003,4]
[327713729,1716358243966,-159.274171,0.0003031,2]
[327713730,1716358243976,-254.9005792,0.00030959,2]
[327713731,1716358243985,-204.5437107,0.00030959,2]
[327713732,1716358243994,-204.5437107,0.00030959,2]
[327713733,1716358244003,-204.5437107,0.00030959,2]
[327713734,1716358244012,-204.5437107,0.00030959,2]
[327713735,1716358244022,-204.5437107,0.00030959,2]
[327713736,1716358244031,-204.5437107,0.00030959,2]
[327713737,1716358244040,-204.5437107,0.00030959,2]
[327713738,1716358244049,-204.5437107,0.00030959,2]
[327713739,1716358244058,-204.5437107,0.00030959,2]
[327713740,1716358244067,-202.7656566,0.00030959,2]
[327713741,1716358244076,-159.12443951,0.000327,2]
[327713742,1716358244085,-15487.64175573,0.000328,7]
[327713743,1716358244098,-672.70730976,0.000328,7]
[327713753,1716358246433,-4900.47106897,0.000328,7]
[327713754,1716358246442,-2100.61893103,0.000328,2]
[327713770,1716358454740,5348.57,0.00017,2]
[327713778,1716358515285,154.98450155,0.00017,2]
[327713779,1716358531268,154.98450155,0.00017,2]
[327713780,1716358551270,226.86741289,0.00017,2]
[327713879,1716359438882,-2018.88511225,0.0002,2]
[327713880,1716359438894,-284.01578379,0.0002,2]
[327713881,1716359438903,-222.46597953,0.00020913,2]
[327714028,1716359441363,-47979.38079465,0.00020913,2]
[327714029,1716359441373,-160.61898837,0.00024284,2]
[327714031,1716359441382,-159.274171,0.00024384,2]
[327714032,1716359441392,-362.20721548,0.00025,2]
[327714033,1716359441401,-151.0,0.000258,5]
[327714034,1716359441413,-151.0,0.000258,5]
[327714035,1716359441422,-151.0,0.00026493,5]
[327714036,1716359441432,-151.0,0.00026493,5]
[327714037,1716359441442,-151.0,0.00027186,5]
[327714038,1716359441451,-151.0,0.00027186,5]
[327714039,1716359441460,-151.0,0.00027879,5]
[327714040,1716359441469,-500.092,0.0002817,2]
[327714041,1716359441478,-151.0,0.00028572,7]
[327714042,1716359441488,-151.0,0.00029265,7]
[327714043,1716359441497,-154.21000022,0.000299,2]
[327714044,1716359441507,-151.0,0.00029959,7]
[327714045,1716359441516,-783.97235853,0.0003,4]
[327714047,1716359441525,-151.0,0.00030652,7]
[327714049,1716359441535,-159.274171,0.00031007,2]
[327714051,1716359441546,-352.461752,0.00032348,2]
[327714052,1716359441556,-352.02756061,0.00032383,2]
[327714053,1716359441566,-152.48651167,0.00032471,3]
[327714054,1716359441576,-150.96980604,0.0003278,2]
[327714055,1716359441586,-269.48,0.00032789,3]
[327714056,1716359441596,-224.57,0.00032789,3]
[327714057,1716359441606,-500.0,0.00032795,2]
[327714058,1716359441616,-500.0,0.00032795,2]
[327714059,1716359441625,-287.67256976,0.00032795,2]
[327714060,1716359441635,-500.0,0.00032795,2]
[327714061,1716359441644,-500.0,0.00032795,2]
[327714062,1716359441786,-500.0,0.00032795,2]
[327714063,1716359441796,-500.0,0.00032795,2]
[327714064,1716359441806,-500.0,0.00032795,2]
[327714065,1716359441816,-500.0,0.00032795,2]
[327714066,1716359441825,-500.0,0.00032795,2]
[327714067,1716359441836,-500.0,0.00032795,2]
[327714068,1716359441847,-500.0,0.00032795,2]
[327714069,1716359441857,-500.0,0.00032795,2]
[327714070,1716359441868,-500.0,0.00032795,2]
[327714071,1716359441878,-257.46724367,0.00032795,2]
[327714072,1716359441889,-500.0,0.00032795,2]
[327714073,1716359441899,-500.0,0.00032795,2]
[327714074,1716359441910,-500.0,0.00032795,2]
[327714075,1716359441929,-500.0,0.00032795,2]
[327714076,1716359441939,-500.0,0.00032795,2]
[327714077,1716359441950,-500.0,0.00032795,2]
[327714078,1716359441961,-500.0,0.00032795,2]
[327714079,1716359441971,-500.0,0.00032795,2]
[327714080,1716359441982,-493.35653418,0.00032795,2]
[327714101,1716359444464,-187.14,0.00032789,3]
[327714102,1716359444474,-6.64346582,0.00032795,2]
[327714103,1716359444483,-9589.27198712,0.00032795,7]
[327714191,1716359918790,-800000.0,0.00035071,120]
[327714192,1716359924874,-800000.0,0.00035071,120]
[327714193,1716359928580,-800000.0,0.00035071,120]
[327714194,1716359940735,-800000.0,0.00035071,120]
[327714195,1716360003781,-3000000.0,0.00035068,120]
[327714196,1716360022735,-3000000.0,0.00035068,120]
[327714197,1716360040340,154.98450155,9.999e-05,2]
[327714198,1716360059907,154.98450155,9.999e-05,2]
[327714200,1716360079673,-3000000.0,0.00035068,120]
[327714201,1716360089783,-3000000.0,0.00035068,120]
[327714202,1716360134053,-593.51966769,0.000267,120]
[327714203,1716360134088,-2220.32310428,0.00033422,120]
[327714204,1716360134225,-200.0,0.00033422,120]
[327714205,1716360134287,-393.51966769,0.00033422,120]
[327714206,1716360134423,-200.0,0.00034356,120]
[327714207,1716360134482,-200.0,0.00035007,120]
[327714209,1716360168681,395.46739855,9.999e-05,2]
[327714212,1716360209820,-4000000.0,0.00035064,120]
[327714213,1716360214604,500.0,0.000318,120]
[327714214,1716360215350,500.0,0.000318,120]
[327714215,1716360216311,500.0,0.000318,120]
[327714216,1716360216869,500.0,0.000318,120]
[327714217,1716360217640,500.0,0.000318,120]
[327714218,1716360218386,500.0,0.000318,120]
[327714219,1716360219155,500.0,0.000318,120]
[327714220,1716360219917,500.0,0.000318,120]
[327714221,1716360220711,500.0,0.000318,120]
[327714222,1716360222714,500.0,0.000318,120]
[327714223,1716360223369,500.0,0.000318,120]
[327714224,1716360224159,500.0,0.000318,120]
[327714225,1716360224944,510.12,0.000318,120]
[327714253,1716360290576,500.0,0.000318,120]
[327714254,1716360315654,-2182.553018,0.00035616,120]
[327714255,1716360315783,-3876.35508404,0.00038,120]
[327714256,1716360315819,-282.0,0.0003815,120]
[327714257,1716360315855,-996.06018726,0.000385,60]
[327714258,1716360315931,-311.52205674,0.0004,120]
[327714259,1716360315955,-250.09311481,0.0004,120]
[327714260,1716360315980,-500.0,0.0004,120]
[327714261,1716360316004,-341.02071763,0.0004,120]
[327714262,1716360316029,-155.51207671,0.00040914,120]
[327714263,1716360316055,-534.92,0.00041095,120]
[327714264,1716360316079,-534.92,0.00041095,120]
[327714265,1716360316104,-534.92,0.00041095,120]
[327714266,1716360316131,-534.92,0.00041095,120]
[327714267,1716360316158,-534.92,0.00041095,120]
[327714268,1716360316187,-534.92,0.00041095,120]
[327714269,1716360316212,-534.92,0.00041095,120]
[327714270,1716360316379,-534.92,0.00041095,120]
[327714271,1716360316406,-534.92,0.00041095,120]
[327714272,1716360316433,-534.92,0.00041095,120]
[327714273,1716360316461,-534.92,0.00041095,120]
[327714274,1716360316486,-534.92,0.00041095,120]
[327714275,1716360316510,-534.92,0.00041095,120]
[327714276,1716360316534,-534.92,0.00041095,120]
[327714277,1716360316558,-534.92,0.00041095,120]
[327714278,1716360316582,-534.92,0.00041095,120]
[327714279,1716360316604,-534.92,0.00041095,120]
[327714280,1716360316627,-534.92,0.00041095,120]
[327714281,1716360316653,-534.92,0.00041095,120]
[327714282,1716360316677,-534.92,0.00041095,120]
[327714283,1716360316701,-534.92,0.00041095,120]
[327714284,1716360316724,-534.92,0.00041095,120]
[327714285,1716360316747,-534.92,0.00041095,120]
[327714286,1716360316770,-535.05431186,0.00041095,120]
[327714287,1716360316795,-2182.553018,0.00041553,120]
[327714288,1716360316820,-421.0,0.00042345,120]
[327714289,1716360316846,-200.0,0.00042576,120]
[327714290,1716360316871,-500.0,0.00043835,100]
[327714291,1716360316896,-502.0,0.00044,120]
[327714292,1716360316920,-3143.63572053,0.00044384,60]
[327714293,1716360316950,-18634.0,0.00045,120]
[327714294,1716360316974,-309.31922743,0.00045,60]
[327714295,1716360316998,-151.0,0.00045,120]
[327714296,1716360317021,-11309.15036197,0.00045,120]
[327714297,1716360317044,-151.0,0.00045699,120]
[327714298,1716360317069,-151.0,0.00046384,120]
[327714299,1716360317093,-200.0,0.00046498,120]
[327714300,1716360317115,-1767.59416855,0.000465,120]
[327714301,1716360317139,-11703.73205046,0.00046543,120]
[327714302,1716360317162,-500.0,0.00046575,101]
[327714303,1716360317186,-415.0,0.00046575,94]
[327714304,1716360317210,-163.0,0.00047,90]
[327714305,1716360317232,-151.0,0.00047068,120]
[327714306,1716360317255,-2182.553018,0.00047489,120]
[327714307,1716360317279,-151.0,0.00047753,120]
[327714308,1716360317301,-930.81420382,0.00048,120]
[327714309,1716360317322,-620.85312235,0.00048,120]
[327714310,1716360317344,-11410.77629802,0.00048,120]
[327714311,1716360317366,-1965.78192039,0.00048,120]
[327714312,1716360317391,-151.0,0.00048438,120]
[327714313,1716360317418,-1064.89,0.000485,120]
[327714314,1716360317447,-163.0,0.00048904,90]
[327714315,1716360317472,-7064.19559443,0.00049,120]
[327714316,1716360317499,-151.0,0.00049123,120]
[327714317,1716360317524,-4000.0,0.00049299,120]
[327714318,1716360317548,-500.0,0.00049315,102]
[327714319,1716360317576,-500.0,0.00049315,120]
[327714320,1716360317600,-500.0,0.00049315,120]
[327714321,1716360317625,-500.0,0.00049315,120]
[327714322,1716360317651,-500.0,0.00049315,120]
[327714323,1716360317675,-430.2534987,0.00049315,120]
[327714324,1716360317698,-470.1086423,0.00049315,120]
[327714325,1716360317816,-500.0,0.00049315,120]
[327714326,1716360317842,-500.0,0.00049315,120]
[327714327,1716360317865,-500.0,0.00049315,120]
[327714328,1716360317890,-500.0,0.00049315,120]
[327714329,1716360317913,-500.0,0.00049315,120]
[327714330,1716360317937,-500.0,0.00049315,120]
[327714331,1716360317960,-470.1086423,0.00049315,120]
[327714332,1716360317983,-630.04656099,0.00049315,120]
[327714333,1716360318006,-22745.2733154,0.00049315,120]
[327714334,1716360318029,-3143.63572053,0.00049384,60]
[327714335,1716360318052,-10000.0,0.00049666,120]
[327714336,1716360318075,-10618.349026,0.0004968,120]
[327714337,1716360318098,-1008.17,0.000498,90]
[327714338,1716360318121,-151.0,0.00049808,120]
[327714339,1716360318145,-1630.16057061,0.0005,120]
[327714340,1716360318168,-4000.48196063,0.0005,120]
[327714341,1716360318192,-2903.10159587,0.0005,120]
[327714342,1716360318217,-1000.0,0.0005,120]
[327714343,1716360318240,-151.0,0.0005,120]
[327714344,1716360318264,-2484.27471755,0.0005,120]
[327714345,1716360318288,-593.71084958,0.0005,120]
[327714346,1716360318312,-1998.26255188,0.0005,120]
[327714347,1716360318336,-1967.78417925,0.0005,60]
[327714348,1716360318362,-200.0,0.0005,120]
[327714349,1716360318386,-151.0,0.00050493,120]
[327714350,1716360318413,-10000.0,0.00050666,120]
[327714351,1716360318441,-3000.0,0.00051,85]
[327714352,1716360318465,-3000.0,0.0005101,85]
[327714353,1716360318490,-3000.0,0.0005102,85]
[327714354,1716360318516,-3000.0,0.0005103,85]
[327714355,1716360318539,-3000.0,0.0005104,85]
[327714356,1716360318562,-3000.0,0.0005105,85]
[327714357,1716360318587,-3000.0,0.0005106,85]
[327714358,1716360318611,-4893.044712,0.0005107,85]
[327714359,1716360318640,-151.0,0.00051178,120]
[327714360,1716360318664,-621.34,0.00051296,120]
[327714361,1716360318685,-637.09,0.00051296,120]
[327714362,1716360318708,-769.43,0.00051296,120]
[327714363,1716360318730,-749.15,0.00051296,120]
[327714364,1716360318752,-737.55,0.00051296,120]
[327714365,1716360318773,-755.82,0.00051296,120]
[327714366,1716360318795,-873.08720098,0.00051296,120]
[327714367,1716360318818,-468.52,0.00051296,120]
[327714368,1716360318842,-458.79,0.00051296,120]
[327714369,1716360318867,-646.68,0.00051296,120]
[327714370,1716360318891,-529.42357725,0.00051296,120]
[327714371,1716360318916,-644.21,0.00051296,120]
[327714372,1716360318938,-257.78626036,0.00051296,120]
[327714373,1716360318962,-10000.0,0.00051666,120]
[327714374,1716360318985,-151.0,0.00051863,120]
[327714375,1716360319009,-500.0,0.00052054,103]
[327714389,1716360357524,3000.0,0.00035068,120]
[327714397,1716360371176,308.7,0.00035067,120]
[327714423,1716360428827,-4000000.0,0.00035064,120]
[327714428,1716360595466,-4000000.0,0.00034925,120]
[327714430,1716360631227,8360.73076925,0.00019999,7]
[327714446,1716360632407,-154.98450155,0.00019999,2]
[327714448,1716360632416,-1822.08563479,0.0002,4]
[327714450,1716360632426,-2467.15169101,0.00020912,2]
[327714452,1716360632437,-37279.56490548,0.00020913,2]
[327714568,1716360644556,-667.07225811,0.00020913,2]
[327714579,1716360665224,-4000000.0,0.00034925,120]
[327714580,1716360690242,1901.84,0.0003506,120]
[327714588,1716360731266,701.1,0.0003506,120]
[327714593,1716360911973,-3000000.0,0.00034613,120]
[327714656,1716361477295,308.49,0.00035067,120]
[327714670,1716361547561,154.98450155,9.999e-05,2]
[327714716,1716361719165,1371.88,0.00035,120]
[327714719,1716361802681,-4000000.0,0.00034506,120]
[327714720,1716361814865,150.96980604,0.00024412,120]
[327714729,1716361832812,-154.98450155,0.00020138,2]
[327714730,1716361832821,-1012.2697971,0.00020139,4]
[327714731,1716361832831,-280.14272894,0.0002014,2]
[327714732,1716361832840,-197.090936,0.00020141,2]
[327714733,1716361832849,-417.39872503,0.0002064,2]
[327714734,1716361832859,-4224.86010977,0.00020792,2]
[327714735,1716361832868,-31143.72203191,0.00020913,2]
[327714749,1716361838474,-200.50883297,0.000209,2]
[327714750,1716361838484,-799.93770809,0.00020913,2]
[327714753,1716361838496,-280.86267126,0.00020913,2]
[327714775,1716361841195,-7914.3406971,0.00020913,2]
[327714776,1716361841995,36646.01808661,0.00035068,120]
[327714787,1716361847604,200.0,0.00032,120]
[327714793,1716361849856,-1012.2697971,0.00020912,4]
[327714794,1716361849866,-146.87044256,0.00020913,2]
[327714817,1716362011337,-2347626.23584037,0.00034458,120]
[327714818,1716362011497,-597.39,0.00034458,120]
[327714819,1716362011544,-507.43295808,0.00034458,30]
[327714820,1716362011581,-653.0,0.00034458,120]
[327714821,1716362011621,-867.55049026,0.00034458,120]